Cogmind - Beta 14 @@@ ROGUE MODE // 2025.03.14 @ 12:08:36 Player: Yura Nebov Result: Destroyed by G-47 Trooper with Particle Gun Performance ------------- Evolutions (2) 1000 Regions Visited (4) 800 Robots Destroyed (43) 215 Value Destroyed (809) 809 Prototype IDs (2) 40 Alien Tech Used (0) 0 Bonus (0) 0 TOTAL SCORE: 2864 Bonus ------- None Cogmind --------- Core Integrity 0/550 Matter 300/300 Energy 94/100 System Corruption 5% Temperature Cool (9) Movement Walking (120) Location -8/Materials Parts ------- > --- POWER (2) -------- (None) > --- PROPULSION (2) --- Carbon-fiber Leg > --- UTILITY (5) ------ Small Storage Unit Targeting Computer Targeting Computer > --- WEAPON (2) ------- EM Pulse Cannon Hammer > --- INVENTORY (8) ---- Carbon-fiber Leg Carbon-fiber Leg Improved Terrain Scanner Hacking Suite EM Pulse Cannon EM Pulse Cannon EM Pulse Cannon Minigun Peak State ------------ > --- POWER ------------ (None) > --- PROPULSION ------- Carbon-fiber Leg Carbon-fiber Leg > --- UTILITY ---------- Small Storage Unit Targeting Computer Targeting Computer Particle Charger > --- WEAPON ----------- EM Pulse Cannon Hammer > --- INVENTORY -------- Light Treads Light Treads Carbon-fiber Leg Carbon-fiber Leg Improved Terrain Scanner Hacking Suite EM Pulse Cannon Minigun [Rating: 18] Favorites ----------- Power Ion Engine Engine Ion Engine Propulsion Wheel Treads Light Treads Leg Carbon-fiber Leg Wheel Wheel Utility Small Storage Unit Device Improved Terrain Scanner Storage Small Storage Unit Processor Targeting Computer Protection Utility Shielding Weapon Small Laser Energy Gun Small Laser Energy Cannon EM Pulse Cannon Special Weapon Mining Laser Impact Weapon Hammer Build | -11 -10 -10 -10 -8 ------- Run | Yrd Mat Min Sub Mat Slots Evolved 4 | . . . . 4 Power 1 | . . . . 1 Propulsion . | . . . . . Utility 3 | . . . . 3 Weapon . | . . . . . Parts Attached 41 | 8 3 4 . 26 Power 4 | 1 . . . 3 Engine 4 | 1 . . . 3 Core . | . . . . . Reactor . | . . . . . Propulsion 15 | 2 . 1 . 12 Treads 4 | . . . . 4 Leg 2 | . . . . 2 Wheel 9 | 2 . 1 . 6 Hover . | . . . . . Flight . | . . . . . Utility 13 | 3 1 3 . 6 Device 5 | 2 . 2 . 1 Storage 1 | 1 . . . . Processor 3 | . . . . 3 Hackware . | . . . . . Protection 4 | . 1 1 . 2 Artifact . | . . . . . Weapon 9 | 2 2 . . 5 Energy Gun 6 | 2 1 . . 3 Energy Cannon 1 | . . . . 1 Ballistic Gun . | . . . . . Ballistic Cannon . | . . . . . Launcher . | . . . . . Special Weapon 1 | . 1 . . . Impact Weapon 1 | . . . . 1 Slashing Weapon . | . . . . . Piercing Weapon . | . . . . . Special Melee Weapon . | . . . . . Unidentified Prototypes . | . . . . . Parts Lost 19 | . . . . 19 Power 4 | . . . . 4 Propulsion 6 | . . . . 6 Utility 4 | . . . . 4 Weapon 5 | . . . . 5 Highest Loss Streak 7 | . . . . 7 To Critical Strikes . | . . . . . Average Slot Usage (%) 95 | . 100 100 100 87 Engine 12 | . 14 14 14 9 Treads 1 | . . . . 4 Leg 1 | . . . . 3 Wheel 21 | . 28 28 28 9 Device 9 | . 13 7 14 7 Storage 12 | . 14 14 14 9 Processor 5 | . . . . 18 Protection 5 | . . 6 . 8 Energy Gun 23 | . 27 28 28 13 Peak Build Rating 18 | 9 8 9 9 18 Average Rating 9 | 6 7 8 9 14 On Entrance 6 | . 7 8 9 9 Naked Turns . | . . . . . Heaviest Build 19 | 13 13 13 13 19 Greatest Support 40 | 20 20 20 20 40 Greatest Overweight (x) 1 | . . . . 1 Average Overweight (x) . | . . . . . Largest Inventory Capacity 8 | 8 8 8 8 8 Average Capacity 7 | 7 8 8 8 8 Most Carried 8 | 7 8 8 8 8 Average Carried 7 | 2 7 7 8 5 Final Capacity 8 | 8 8 8 8 8 Final Carried 8 | 7 8 8 8 8 Class Distribution -------------------- 80% | Mutant 19% | Scavenger-Mutant Dominant Class ---------------- Mutant | -10/Materials Mutant | -10/Mines Mutant | -10/Subcaves Scavenger-Mutant | -8/Materials Resources | -11 -10 -10 -10 -8 ----------- Run | Yrd Mat Min Sub Mat Matter Collected 692 | 280 187 40 . 185 Remotely . | . . . . . Salvage Created 1234 | 197 196 170 . 671 Parts 80 | 19 20 11 . 30 Haulers Intercepted . | . . . . . Recyclers Shooed 4 | . . . . 4 Parts Field Recycled . | . . . . . Retrieved Matter . | . . . . . Parts Self-Destructed . | . . . . . Prevented . | . . . . . Kills | -11 -10 -10 -10 -8 ------- Run | Yrd Mat Min Sub Mat Combat Hostiles Destroyed 29 | . 6 5 . 18 Guns 25 | . 6 5 . 14 Classes Destroyed 10 | 3 2 1 . 4 Worker 6 | 2 1 2 . 1 Tunneler 5 | 5 . . . . Recycler 2 | 1 1 . . . Watcher 1 | . 1 . . . Swarmer 17 | . 6 3 . 8 Grunt 4 | . . 2 . 2 Brawler 1 | . . . . 1 Sentry 4 | . . . . 4 Specialist 2 | . . . . 2 Hunter 1 | . . . . 1 Best Kill Streak 8 | 8 5 4 . 6 Combat Bots Only 6 | . 3 2 . 6 Max Kills in Single Turn 1 | 1 1 1 . 1 Gunslinging . | . . . . . Exploded . | . . . . . Melee . | . . . . . Uniques/NPCs Destroyed . | . . . . . Combat | -11 -10 -10 -10 -8 -------- Run | Yrd Mat Min Sub Mat Hostile Shots Fired 224 | . 13 26 . 185 Missed 68 | . 6 7 . 55 Damage Taken 2098 | . 64 183 . 1851 Core 593 | . 10 31 . 552 Absorbed by Shields . | . . . . . Redirected to Shielding 53 | . . 4 . 49 Core Remaining (%) 91 | 100 . . 83 . Volleys Fired 103 | 14 16 23 . 50 Largest 2 | 2 2 2 . 2 Hottest 121 | 80 100 80 . 121 Shots Fired 192 | 28 31 46 . 87 Gun 190 | 28 30 46 . 86 Cannon 1 | . . . . 1 Launcher . | . . . . . Special 1 | . 1 . . . Kinetic . | . . . . . Thermal 191 | 28 31 46 . 86 Explosive . | . . . . . Electromagnetic 1 | . . . . 1 Robot Hit Streak 24 | 7 13 6 . 24 Robot Miss Streak 5 | 2 1 2 . 5 Penetration Max . | . . . . . Secondary Targets 2 | . 1 . . 1 Max Gunslinging Chain 1 | . 1 . . 1 Shots Hit Robots 142 | 16 21 29 . 76 Core Hits 56 | 9 11 12 . 24 Critical Kills . | . . . . . Critical Parts Destroyed 4 | . . . . 4 Critical Strikes 8 | . . . . 8 Burn 4 | . . . . 4 Smash 4 | . . . . 4 Melee Attacks 14 | . . . . 14 Impact 14 | . . . . 14 Slashing . | . . . . . Piercing . | . . . . . Sneak Attacks . | . . . . . Combat Hostiles . | . . . . . Follow-up Attacks . | . . . . . Damage Inflicted 2059 | 184 244 317 . 1314 Guns 1713 | 184 228 317 . 984 Cannons . | . . . . . Explosions . | . . . . . Melee 326 | . . . . 326 Ramming 20 | . 16 . . 4 Kinetic . | . . . . . Thermal 1713 | 184 228 317 . 984 Explosive . | . . . . . Electromagnetic . | . . . . . Impact 326 | . . . . 326 Slashing . | . . . . . Piercing . | . . . . . Highest Corruption 5 | . . . . 5 Average Corruption 5 | . . . . 5 Corruption Purged . | . . . . . Corruption Blocked . | . . . . . Effects 1 | . . . . 1 Parts Fused 1 | . . . . 1 Overload Shots . | . . . . . Overflow Damage 127 | . . . . 127 Projectiles . | . . . . . Explosions . | . . . . . Melee 127 | . . . . 127 Knockbacks . | . . . . . Impact . | . . . . . Kinetic . | . . . . . Secondary . | . . . . . Self-Inflicted Damage 10 | . 8 . . 2 Shots . | . . . . . Rammed 3 | . 1 . . 2 Targets Rammed 3 | . 1 . . 2 Kicked . | . . . . . Crushed . | . . . . . Highest Temperature 418 | 54 90 158 . 418 Average Temperature 86 | 25 33 48 . 129 Received Heat Transfer 678 | . . 57 . 621 Siege Activations . | . . . . . Robots Corrupted 4 | . . . . 4 Combat Hostiles 4 | . . . . 4 Parts Fried 8 | . . . . 8 Impact Corruptions 8 | . . . . 8 Robots Melted . | . . . . . Combat Hostiles . | . . . . . Parts Melted 9 | 1 . 1 . 7 Heat Transferred 4365 | 425 525 725 . 2690 Parts Sabotaged . | . . . . . Parts Stolen . | . . . . . Parts Stripped . | . . . . . Power Chain Reactions . | . . . . . Alert | -11 -10 -10 -10 -8 ------- Run | Yrd Mat Min Sub Mat Peak Influence 369 | 40 286 268 . 369 Initial 33 | . 26 33 . 16 Average 157 | 13 123 184 . 193 Maximum Alert Level 1 | . 1 1 . 1 Low Security (%) 64 | 100 93 42 . 53 Level 1 35 | . 6 57 . 46 Level 2 . | . . . . . Level 3 . | . . . . . Level 4 . | . . . . . Level 5 . | . . . . . High Security . | . . . . . Max Security . | . . . . . Squads Dispatched 3 | . 1 . . 2 Investigation . | . . . . . Extermination . | . . . . . Reinforcement 3 | . 1 . . 2 Assault . | . . . . . Garrison . | . . . . . Intercept . | . . . . . Searches Triggered . | . . . . . Construction Impeded . | . . . . . Haulers Reinforced . | . . . . . Active Scanning Responses . | . . . . . Cargo Convoy Interrupts . | . . . . . Stealth | -11 -10 -10 -10 -8 --------- Run | Yrd Mat Min Sub Mat Distress Signals 8 | . 1 1 . 6 Communications Jammed . | . . . . . Distress Signals . | . . . . . Times Spotted 52 | . 11 11 2 28 Peak Tracking Total 15 | . 6 15 2 8 Tactical Retreats 7 | . 1 5 . 1 Traps | -11 -10 -10 -10 -8 ------- Run | Yrd Mat Min Sub Mat Traps Triggered . | . . . . . Indirectly . | . . . . . Trap Hack Attempts . | . . . . . Triggered . | . . . . . Disarmed . | . . . . . Reprogrammed . | . . . . . Reused . | . . . . . Traps Extracted . | . . . . . Installed . | . . . . . Triggered . | . . . . . Machines | -11 -10 -10 -10 -8 ---------- Run | Yrd Mat Min Sub Mat Machines Disabled . | . . . . . Max in Single Turn . | . . . . . Machines Repaired . | . . . . . Machines Dismantled . | . . . . . Machines Sabotaged . | . . . . . Overloaded Fab Kills . | . . . . . Hacking | -11 -10 -10 -10 -8 --------- Run | Yrd Mat Min Sub Mat Machines Accessed 6 | . 6 . . . Terminals 6 | . 6 . . . Fabricators . | . . . . . Repair Stations . | . . . . . Recycling Units . | . . . . . Scanalyzers . | . . . . . Garrison Access . | . . . . . Total Hacks 19 | . 19 . . . Successful 9 | . 9 . . . Failed 10 | . 10 . . . Catastrophic 1 | . 1 . . . Database Lockouts . | . . . . . Manual 9 | . 9 . . . Terminals 19 | . 19 . . . Fabricators . | . . . . . Repair Stations . | . . . . . Recycling Units . | . . . . . Scanalyzers . | . . . . . Garrison Access . | . . . . . Terminal Hacks 6 | . 6 . . . Record 1 | . 1 . . . Prototype ID Bank 1 | . 1 . . . Branch Access Points 1 | . 1 . . . Dispatch Records 1 | . 1 . . . Hauler Manifests 1 | . 1 . . . Registered Components 1 | . 1 . . . Fabricator Hacks . | . . . . . Repair Station Hacks . | . . . . . Recycling Unit Hacks . | . . . . . Scanalyzer . | . . . . . Garrison Access Hacks . | . . . . . Unauthorized Hacks 3 | . 3 . . . Terminals 3 | . 3 . . . Assimilate 1 | . 1 . . . Botnet 2 | . 2 . . . Fabricators . | . . . . . Repair Stations . | . . . . . Recycling Units . | . . . . . Scanalyzers . | . . . . . Garrison Access . | . . . . . Data Cores Recovered . | . . . . . Used . | . . . . . Hacking Detections 6 | . 6 . . . Full Trace Events 1 | . 1 . . . Feedback Events . | . . . . . Feedback Blocked . | . . . . . Robot Schematics Acquired . | . . . . . Robots Built . | . . . . . Authchips . | . . . . . Time . | . . . . . Total Robot Build Rating . | . . . . . Part Schematics Acquired . | . . . . . Parts Built . | . . . . . Authchips . | . . . . . Time . | . . . . . Total Part Build Rating . | . . . . . Parts Repaired . | . . . . . Time . | . . . . . Parts Recycled . | . . . . . Recycled Matter . | . . . . . Retrieved Matter . | . . . . . Retrieved Components . | . . . . . Parts Scanalyzed . | . . . . . Part Schematics Acquired . | . . . . . Parts Damaged . | . . . . . Bothacking | -11 -10 -10 -10 -8 ------------ Run | Yrd Mat Min Sub Mat Used RIF Installer . | . . . . . Robots Hacked . | . . . . . Non-combat . | . . . . . Combat . | . . . . . Robot Hacks Applied . | . . . . . Relay Couplers Released . | . . . . . Fabnet Peak Effective % . | . . . . . Robots Rewired . | . . . . . Allies Hacked . | . . . . . Hacks Repelled . | . . . . . Allies | -11 -10 -10 -10 -8 -------- Run | Yrd Mat Min Sub Mat Total Allies . | . . . . . Largest Group . | . . . . . Highest-Rated Group . | . . . . . Highest-Rated Ally . | . . . . . Total Orders . | . . . . . Ally Attacks . | . . . . . Total Damage . | . . . . . Kills . | . . . . . Allies Corrupted . | . . . . . Allies Melted . | . . . . . Intel | -11 -10 -10 -10 -8 ------- Run | Yrd Mat Min Sub Mat Robot Analysis Total . | . . . . . Derelict Logs Recovered . | . . . . . Drone Launches . | . . . . . Drone Recoveries . | . . . . . Exploration | -11 -10 -10 -10 -8 ------------- Run | Yrd Mat Min Sub Mat Turns Passed 1745 | 120 465 538 86 536 Spaces Moved 1008 | 75 408 207 108 210 Core 3 | 3 . . . . Treads 20 | . . . . 20 Legs 44 | . . . . 44 Wheels 941 | 72 408 207 108 146 Hover . | . . . . . Flight . | . . . . . Fastest Speed 50 | 50 80 80 80 80 Average Speed 83 | 78 80 80 80 96 Slowest Speed 160 | 80 80 80 80 160 Overloaded Moves . | . . . . . Propulsion Burnouts . | . . . . . Robots Hopped . | . . . . . Cave-ins Triggered . | . . . . . Exploration Rate (%) 32 | 4 78 40 8 32 Regions Visited 4 Branch Regions 2 Pre-discovered Areas . | . . . . . Known Exits Taken 1 | . 1 . . . Unknown Exits Taken 3 | 1 . 1 1 . Scrap Searched . | . . . . . Spaces Dug 1 | . 1 . . . Terrain Destroyed 1 | . 1 . . . Melee . | . . . . . Projectile 1 | . 1 . . . AOE . | . . . . . Terrain Rammed . | . . . . . Walls Destroyed . | . . . . . Machines Disabled . | . . . . . Actions | -11 -10 -10 -10 -8 --------- Run | Yrd Mat Min Sub Mat Total 1686 | 104 514 532 107 429 Wait 471 | . 75 296 . 100 Move 1004 | 74 407 206 107 210 Hop . | . . . . . Pick Up 31 | 7 6 1 . 17 Fast Attach 17 | 7 1 . . 9 Attach 11 | 1 . . . 10 Detach 2 | 1 . . . 1 Swap 13 | . 2 4 . 7 Drop 17 | . 6 2 . 9 Fire 103 | 14 16 23 . 50 Melee 14 | . . . . 14 Ram 3 | . 1 . . 2 Kick . | . . . . . Crush . | . . . . . Escape Stasis . | . . . . . Rewire . | . . . . . Trap . | . . . . . Miscellaneous . | . . . . . Route ------- -11/Scrapyard -10/Materials (discovered 3 exits: [*Mat] / *Min x2) -10/Mines (discovered 3 exits: [*Mat x2] / [*Sub]) -10/Subcaves -8/Materials History --------- Turn | Location | Event 22 | -11/Scrapyard | Discovered new exit (range 16) 121 | -11/Scrapyard | Entered Materials 144 | -10/Materials | Identified exit to Mines 312 | -10/Materials | Build established: Mutant 343 | -10/Materials | Discovered new exit (range 14) 586 | -10/Materials | Entered Mines 753 | -10/Mines | Discovered new exit (range 6) 776 | -10/Mines | Discovered new exit (range 9) 1110 | -10/Mines | Assembled infested the area 1120 | -10/Mines | Discovered new exit (range 5) 1124 | -10/Mines | Entered Subcaves 1182 | -10/Subcaves | Discovered new exit (range 13) 1202 | -10/Subcaves | A swath of the cavern ceiling suddenly collapsed 1210 | -10/Subcaves | Entered Materials 1210 | -8/Materials | Evolved 4 slots: Power x1, Utility x3 1355 | -8/Materials | Lost 5 parts (2p2n1w) 1615 | -8/Materials | Core integrity fell below 50% 1647 | -8/Materials | Build established: Scavenger-Mutant 1651 | -8/Materials | Lost 7 parts (1p2n2u2w) 1659 | -8/Materials | Core integrity fell below 20% 1698 | -8/Materials | Lost 3 parts (1n1u1w) 1746 | -8/Materials | Destroyed by G-47 Trooper with Particle Gun Last Messages --------------- 01740_ Carbon-fiber Leg destroyed. 01740_ Critical hit (Burn: +37). 01741_ K-01 Serf collects debris. 01742_ Y-45 Defender suffers critical hit (Smash). 01742_ Destroyed Heat Sink. 01742_ Y-45 Defender system corrupted by crushing effect. 01742_ Particle Charger destroyed. 01743_ Y-45 Defender misfires. 01745_ U-05 Engineer works on Pressure Siphon. 01745_ Y-45 Defender suffers critical hit (Smash). 01745_ Destroyed Lgt. Treads. 01745_ Y-45 Defender system corrupted by crushing effect. 01745_ U-05 Engineer works on Pressure Siphon. 01746_ Y-45 Defender system terminally corrupted. 01746_ K-01 Serf collects debris. Map ----- +----------------------------------------------------+ | ??????????????????????????????????????????? | | ??????????????????????????????????????????? | | ??????????????????????????????????????????? | | ??????????????????????????????????????????? | | ??????????????????????????????????????????? | | ??????????????????????????????????????????? | | ??????????????????????????????????????????? | | ??????????????????????????????????????????? | | ??????????????????????????????????????????? | | ??????????????????????????????????????????? | | ??????????????????????????????????????????? | | ???????????????????????????? ????????????? | | ??????????????????????????? ^ ??????????? | | ?????????? ???????????????? ?????????? | | ????????? ????????????? ?????????? | | ????????# #???????????? ?????????? | | ????????# #???????????? ?????????? | | ????????# #??????????? ??????????? | | ????????# #??????????? ? ##??????? | | ????????# #??????????? #??????? | | ????????# #???????????g <